bitfinex/quotes_SOLUSD_20241126
["timestamp","ask_amount","ask_price","bid_price","bid_amount"]
[1732656692768,13.52582031,230.78,230.71,17.86022031]
[1732656693766,13.52582031,230.78,230.6,5.0]
[1732656693767,13.52582031,230.76,230.62,6.2682]
[1732656693945,13.52582031,230.75,230.68,13.52582031]
[1732656694153,13.52582031,230.76,230.69,13.52582031]
[1732656695060,13.52582031,230.77,230.7,13.52582031]
[1732656695265,13.52582031,230.79,230.72,13.52582031]
[1732656695468,13.52582031,230.79,230.71,13.52582031]
[1732656696365,13.52582031,230.79,230.66,10.8383]
[1732656696366,13.52582031,230.79,230.72,13.52582031]
[1732656696568,13.52582031,230.8,230.73,13.52582031]
[1732656696772,13.52582031,230.79,230.72,13.52582031]
[1732656697069,13.52582031,230.8,230.72,13.52582031]
[1732656697260,13.52582031,230.81,230.74,13.52582031]
[1732656697457,13.52582031,230.8,230.73,13.52582031]
[1732656698487,13.52582031,230.76,230.69,13.52582031]
[1732656698773,13.52582031,230.75,230.68,13.52582031]
[1732656699272,23.776884,230.81,230.69,13.52582031]
[1732656699273,13.52582031,230.76,230.69,13.52582031]
[1732656700073,13.52582031,230.76,230.64,10.8389]
[1732656700074,13.52582031,230.74,230.67,13.52582031]
[1732656700577,13.52582031,230.73,230.65,13.52582031]
[1732656700757,2.1668,230.76,230.67,13.52582031]
[1732656700955,13.52582031,230.75,230.68,13.52582031]
[1732656702270,13.52582031,230.73,230.67,4.3351]
[1732656702472,13.52582031,230.72,230.65,17.86122031]
[1732656702777,13.52582031,230.71,230.63,17.86152031]
[1732656703484,13.52582031,230.69,230.62,4.3361]
[1732656703871,13.52582031,230.69,230.61,13.52582031]
[1732656704061,13.52582031,230.66,230.59,13.52582031]
[1732656705286,13.52582031,230.67,230.6,13.52582031]
[1732656705764,13.52582031,230.68,230.61,13.52582031]
[1732656706190,15.69332031,230.68,230.6,13.52582031]
[1732656706863,13.52582031,230.68,230.61,13.52582031]
[1732656707466,13.52582031,230.68,230.6,13.52582031]
[1732656707777,13.52582031,230.67,230.59,13.52582031]
[1732656707974,15.69332031,230.68,230.6,13.52582031]
[1732656708180,15.69342031,230.66,230.58,13.52582031]
[1732656708369,15.69342031,230.66,230.59,13.52582031]
[1732656708685,13.52582031,230.68,230.6,13.52582031]
[1732656709474,13.52582031,230.67,230.6,13.52582031]
[1732656709664,15.69332031,230.67,230.6,13.52582031]
[1732656709872,13.52582031,230.68,230.6,17.86222031]
[1732656710184,15.69332031,230.68,230.61,13.52582031]
[1732656710402,13.52582031,230.67,230.6,4.3364]
[1732656710594,2.1675,230.68,230.57,13.52582031]
[1732656710595,13.52582031,230.65,230.57,13.52582031]
[1732656711486,13.52582031,230.66,230.58,13.52582031]
[1732656711671,15.69352031,230.66,230.58,13.52582031]
[1732656711882,15.69352031,230.66,230.59,13.52582031]
[1732656712784,13.52582031,230.65,230.58,13.52582031]
[1732656713090,15.69352031,230.66,230.59,13.52582031]
[1732656713274,2.1677,230.66,230.59,13.52582031]
[1732656713484,15.69352031,230.66,230.59,13.52582031]
[1732656713679,15.69332031,230.68,230.61,13.52582031]
[1732656713872,18.3521,230.73,230.67,13.52582031]
[1732656714196,16.1851,230.73,230.67,13.52582031]
[1732656714373,3.22183723,230.72,230.67,13.52582031]
[1732656714982,18.3521,230.73,230.67,13.52582031]
[1732656716692,31.87792031,230.73,230.66,13.52582031]
[1732656718284,18.3521,230.73,230.66,13.52582031]
[1732656718880,16.1851,230.73,230.66,17.86112031]
[1732656719188,18.3521,230.73,230.67,13.52582031]
[1732656719799,16.1851,230.73,230.66,4.3353]
[1732656720093,16.2618,230.79,230.72,13.52582031]
[1732656720478,3.2238574,230.78,230.72,13.52582031]
[1732656720796,16.74967771,230.78,230.71,13.52582031]
[1732656720972,16.2618,230.79,230.77,13.52582031]
[1732656721173,13.52582031,230.83,230.76,13.52582031]
[1732656721494,13.52582031,230.78,230.71,13.52582031]
[1732656721705,13.52582031,230.76,230.69,13.52582031]
[1732656721869,13.52582031,230.72,230.65,17.86132031]
[1732656722472,13.52582031,230.71,230.65,17.86132031]
[1732656722774,13.52582031,230.72,230.65,17.86132031]
[1732656723287,15.1929,230.74,230.7,13.52582031]
[1732656723490,20.0,230.74,230.71,13.52582031]
[1732656723790,20.0,230.74,230.7,13.52582031]
[1732656724096,15.69252031,230.77,230.7,13.52582031]
[1732656724874,13.52582031,230.76,230.69,17.86062031]
[1732656725191,23.776884,230.76,230.63,4.3359]
[1732656725412,13.52582031,230.7,230.63,17.86172031]
[1732656726273,13.52582031,230.71,230.64,13.52582031]
[1732656726479,13.52582031,230.74,230.67,13.52582031]
[1732656726884,20.0,230.77,230.72,13.52582031]
[1732656727115,6.4622,230.81,230.74,13.52582031]
[1732656727116,15.69212031,230.81,230.74,13.52582031]
[1732656727417,2.1663,230.81,230.75,13.52582031]
[1732656727702,17.3592,230.8,230.74,13.52582031]
[1732656727904,13.52582031,230.77,230.7,13.52582031]
[1732656728275,13.52582031,230.76,230.69,13.52582031]
[1732656728488,13.52582031,230.73,230.66,17.86102031]
[1732656729287,15.69242031,230.77,230.69,13.52582031]
[1732656729477,13.52582031,230.78,230.71,13.52582031]
[1732656729680,13.52582031,230.77,230.7,13.52582031]
[1732656729905,13.52582031,230.78,230.71,13.52582031]
[1732656730435,13.52582031,230.78,230.7,17.86032031]
[1732656730705,33.52582031,230.77,230.7,17.86032031]
[1732656731483,13.52582031,230.79,230.72,13.52582031]
[1732656732377,2.1665,230.79,230.72,13.52582031]
[1732656732807,13.52582031,230.77,230.7,13.52582031]
[1732656732984,15.69232031,230.79,230.72,13.52582031]
[1732656733191,13.52582031,230.77,230.7,13.52582031]
[1732656733691,13.52582031,230.78,230.71,13.52582031]
[1732656733893,15.69232031,230.79,230.71,13.52582031]
[1732656734090,13.52582031,230.78,230.71,13.52582031]
[1732656734301,13.52582031,230.75,230.67,13.52582031]
[1732656735294,13.52582031,230.76,230.69,13.52582031]
[1732656735598,5.16387819,230.78,230.7,13.52582031]
[1732656735599,3.2279178,230.75,230.7,13.52582031]
[1732656735799,13.52582031,230.79,230.71,13.52582031]
[1732656736001,15.69262031,230.76,230.68,17.86072031]
[1732656736384,13.52582031,230.74,230.67,13.52582031]
[1732656736591,13.52582031,230.72,230.64,13.52582031]
[1732656737115,13.52582031,230.72,230.63,13.52582031]
[1732656737415,13.52582031,230.69,230.62,17.86192031]
[1732656737585,13.52582031,230.7,230.63,13.52582031]
[1732656737789,13.52582031,230.69,230.62,13.52582031]
[1732656737996,15.69312031,230.7,230.63,13.52582031]
[1732656738402,2.1672,230.71,230.65,13.52582031]
[1732656738717,5.16132029,230.74,230.67,13.52582031]
[1732656738917,5.16132029,230.74,230.69,13.52582031]
[1732656739086,15.69242031,230.77,230.7,13.52582031]
[1732656739286,15.69242031,230.77,230.71,13.52582031]
[1732656739287,2.1666,230.77,230.71,13.52582031]
[1732656739509,2.1666,230.77,230.7,13.52582031]
[1732656740424,15.69242031,230.77,230.69,17.86052031]
[1732656740785,15.69242031,230.77,230.68,4.3349]
[1732656740786,13.52582031,230.76,230.68,4.3349]
[1732656741012,15.69242031,230.77,230.69,13.52582031]
[1732656741320,15.69242031,230.77,230.7,13.52582031]
[1732656741713,22.1666,230.77,230.7,13.52582031]
[1732656741917,2.1666,230.77,230.7,13.52582031]
[1732656742217,2.1666,230.77,230.72,13.52582031]
[1732656742400,2.1666,230.77,230.71,13.52582031]
[1732656742600,2.1666,230.77,230.7,13.52582031]
[1732656743524,13.52582031,230.75,230.67,13.52582031]
[1732656743723,13.52582031,230.74,230.67,13.52582031]
[1732656744024,20.0,230.76,230.69,13.52582031]
[1732656744204,15.69242031,230.77,230.69,13.52582031]
[1732656744528,13.52582031,230.75,230.68,17.86062031]
[1732656744703,13.52582031,230.74,230.66,13.52582031]
[1732656744903,33.52582031,230.76,230.68,13.52582031]
[1732656745098,33.52582031,230.76,230.65,4.3355]
[1732656745099,13.52582031,230.74,230.67,13.52582031]
[1732656745699,15.69262031,230.76,230.68,13.52582031]
[1732656745899,20.0,230.77,230.7,13.52582031]
[1732656746099,20.0,230.75,230.7,13.52582031]
[1732656746725,20.0,230.75,230.69,13.52582031]
[1732656747302,20.0,230.75,230.69,17.86052031]
[1732656747620,15.69242031,230.77,230.69,17.86052031]
[1732656748502,13.52582031,230.75,230.67,13.52582031]
[1732656748706,13.52582031,230.75,230.67,17.86092031]
[1732656750211,15.69262031,230.75,230.67,17.86092031]
[1732656751906,15.69262031,230.75,230.61,10.8407]
[1732656751907,13.52582031,230.71,230.63,13.52582031]
[1732656752211,13.52582031,230.71,230.61,15.177]
[1732656752212,13.52582031,230.69,230.61,17.86212031]
[1732656753210,15.69322031,230.69,230.61,17.86212031]
[1732656753806,17.9825,230.71,230.64,13.52582031]
[1732656754008,3.22609432,230.7,230.66,13.52582031]
[1732656754215,3.22609432,230.7,230.68,13.52582031]
[1732656754421,15.69252031,230.76,230.69,13.52582031]
[1732656754625,3.22700549,230.75,230.69,13.52582031]
[1732656755208,5.39380549,230.75,230.69,13.52582031]
[1732656755436,2.1668,230.75,230.69,13.52582031]
[1732656755639,13.52582031,230.72,230.66,13.52582031]
[1732656755935,13.52582031,230.72,230.66,4.3352]
[1732656756223,2.1668,230.75,230.66,17.86102031]
[1732656756224,13.52582031,230.73,230.66,17.86102031]
[1732656756427,13.52582031,230.73,230.66,4.3352]
[1732656756632,13.52582031,230.71,230.63,13.52582031]
[1732656756933,5.16530825,230.73,230.68,13.52582031]
[1732656757104,2.1668,230.75,230.69,13.52582031]
[1732656757307,3.22889035,230.74,230.69,13.52582031]
[1732656757737,2.1668,230.75,230.69,13.52582031]
[1732656758607,15.69262031,230.75,230.67,13.52582031]
[1732656758805,3.23115112,230.74,230.67,13.52582031]
[1732656759031,15.69262031,230.75,230.67,13.52582031]
[1732656759942,15.69262031,230.75,230.67,17.86092031]
[1732656760716,13.52582031,230.73,230.67,4.3351]
[1732656760926,13.52582031,230.73,230.65,13.52582031]
[1732656761130,13.52582031,230.73,230.66,4.3353]
[1732656761340,13.52582031,230.73,230.67,13.52582031]
[1732656761518,15.69262031,230.75,230.67,13.52582031]
[1732656761721,13.52582031,230.73,230.66,4.3353]
[1732656762233,20.0,230.7,230.63,13.52582031]
[1732656763233,13.52582031,230.69,230.61,13.52582031]
[1732656764843,15.69322031,230.69,230.61,17.86202031]
[1732656765027,23.776884,230.7,230.64,13.52582031]
[1732656765420,15.69312031,230.71,230.64,13.52582031]
[1732656765641,0.1,230.76,230.69,13.52582031]
[1732656765840,2.1667,230.76,230.7,13.52582031]
[1732656766142,13.52582031,230.71,230.61,4.3362]
[1732656766434,3.23527796,230.75,230.61,17.86202031]
[1732656766435,13.52582031,230.69,230.61,17.86202031]
[1732656766642,13.52582031,230.69,230.63,13.52582031]
[1732656767048,15.69302031,230.71,230.63,13.52582031]
[1732656767341,3.23544887,230.7,230.63,13.52582031]
[1732656767952,3.23544887,230.7,230.63,17.86152031]
[1732656768518,3.23544887,230.7,230.65,13.52582031]
[1732656770245,3.23544887,230.7,230.65,17.86122031]
[1732656770444,7.34406898,230.72,230.65,17.86122031]
[1732656770639,3.23523934,230.71,230.65,17.86122031]
[1732656771119,3.23523934,230.71,230.67,13.52582031]
[1732656771625,0.1,230.76,230.69,13.52582031]
[1732656771831,3.23471027,230.75,230.69,13.52582031]
[1732656772029,3.23471027,230.75,230.71,13.52582031]
[1732656772339,17.4461,230.77,230.71,13.52582031]
[1732656772542,3.23583235,230.76,230.71,13.52582031]
[1732656772923,17.4461,230.77,230.71,13.52582031]
[1732656773724,15.2794,230.77,230.71,17.86012031]
[1732656773926,13.52582031,230.81,230.73,13.52582031]
[1732656774225,3.235603,230.8,230.74,13.52582031]
[1732656774423,3.235603,230.79,230.73,13.52582031]
[1732656774625,3.235603,230.78,230.73,13.52582031]
[1732656774848,5.17696481,230.8,230.73,13.52582031]
[1732656775025,2.1664,230.8,230.73,13.52582031]
[1732656775434,2.1664,230.8,230.65,19.6107212]
[1732656775435,37.30270431,230.79,230.71,13.52582031]
[1732656777149,39.46920431,230.79,230.71,17.86012031]
[1732656778732,3.23697525,230.78,230.71,17.86012031]
[1732656779429,39.46920431,230.79,230.71,17.86012031]
[1732656780346,13.52582031,230.73,230.63,13.2759212]
[1732656780556,13.52582031,230.71,230.64,13.52582031]
[1732656780755,13.52582031,230.66,230.6,4.3365]
[1732656781054,13.52582031,230.64,230.58,4.3368]
[1732656781450,13.52582031,230.63,230.56,13.52582031]
[1732656781638,13.52582031,230.63,230.56,17.86302031]
[1732656781838,13.52582031,230.61,230.54,0.5194559]
[1732656782044,13.52582031,230.56,230.54,0.5194559]
[1732656782262,13.52582031,230.58,230.54,0.5194559]
[1732656783228,37.30270431,230.55,230.54,0.5194559]
[1732656784452,39.47140431,230.55,230.54,0.5194559]
[1732656785236,37.30270431,230.55,230.54,0.5194559]
[1732656785635,23.776884,230.55,230.54,0.5194559]
[1732656785862,37.30270431,230.55,230.54,0.5194559]
[1732656786457,39.47140431,230.55,230.54,0.5194559]
[1732656787638,23.776884,230.54,230.46,13.52582031]
[1732656787835,37.30270431,230.54,230.47,13.52582031]
[1732656788040,13.52582031,230.53,230.46,13.52582031]
[1732656788353,13.52582031,230.51,230.44,13.52582031]
[1732656788746,13.52582031,230.5,230.42,17.86572031]
[1732656789244,13.52582031,230.5,230.43,13.52582031]
[1732656789758,13.52582031,230.5,230.43,17.86542031]
[1732656790561,13.52582031,230.46,230.39,13.52582031]
[1732656790742,13.52582031,230.46,230.38,13.52582031]
[1732656791051,13.52582031,230.46,230.39,13.52582031]
[1732656791242,13.52582031,230.48,230.41,13.52582031]
[1732656791438,23.776884,230.47,230.41,13.52582031]
[1732656792248,23.776884,230.47,230.42,13.52582031]
[1732656792449,13.62582031,230.51,230.44,13.52582031]
[1732656792659,23.776884,230.5,230.44,13.52582031]
[1732656793253,37.30270431,230.5,230.43,13.52582031]
[1732656793648,37.30270431,230.5,230.43,17.86552031]
[1732656795055,23.776884,230.51,230.45,13.52582031]
[1732656795363,13.52582031,230.49,230.42,13.52582031]
[1732656795540,13.52582031,230.47,230.4,13.52582031]
[1732656795938,13.52582031,230.43,230.36,13.52582031]
[1732656796164,13.52582031,230.41,230.34,17.86702031]
[1732656796363,13.52582031,230.4,230.34,4.3412]
[1732656796739,13.52582031,230.41,230.34,17.86702031]
[1732656797171,13.52582031,230.4,230.34,4.3412]
[1732656797465,13.52582031,230.41,230.34,17.86702031]
[1732656797662,2.1698,230.43,230.37,13.52582031]
[1732656798054,13.52582031,230.46,230.32,15.1961]
[1732656798251,23.776884,230.48,230.42,13.52582031]
[1732656798447,13.52582031,230.46,230.39,13.52582031]
[1732656799065,13.52582031,230.5,230.43,13.52582031]
[1732656799570,16.461,230.52,230.46,13.52582031]
[1732656799942,16.461,230.52,230.47,17.86472031]
[1732656800266,15.69442031,230.56,230.5,13.52582031]
[1732656800661,15.69442031,230.56,230.49,13.52582031]
[1732656800841,16.43,230.57,230.41,4.34]
[1732656800842,29.95582031,230.57,230.41,4.34]
[1732656801042,21.12591505,230.59,230.53,13.52582031]
[1732656801350,21.12591505,230.59,230.42,15.84968931]
[1732656801351,7.60009474,230.59,230.57,13.52582031]
[1732656801666,7.60009474,230.59,230.58,13.52582031]
[1732656802161,7.60009474,230.59,230.58,17.86262031]
[1732656802348,7.60009474,230.59,230.58,26.02432831]
[1732656803154,7.60009474,230.59,230.57,21.68752831]
[1732656803362,7.60009474,230.59,230.56,26.02462831]
[1732656803668,7.60009474,230.59,230.53,21.68752831]
[1732656803846,7.60009474,230.59,230.54,21.68752831]
[1732656804175,7.60009474,230.59,230.54,26.02502831]
[1732656804356,7.60009474,230.59,230.55,21.68752831]
[1732656804556,7.60009474,230.59,230.57,21.68752831]
[1732656804870,7.60009474,230.59,230.56,21.68752831]
[1732656805059,7.60009474,230.59,230.54,4.3375]
[1732656805252,7.60009474,230.59,230.54,26.02502831]
[1732656805675,7.60009474,230.59,230.56,21.68752831]
[1732656805873,7.60009474,230.59,230.55,21.68752831]
[1732656806876,7.60009474,230.59,230.55,26.02482831]
[1732656807686,31.45592305,230.59,230.51,26.02572831]
[1732656807972,29.28762305,230.59,230.51,26.02572831]
[1732656808157,7.60009474,230.59,230.54,21.68752831]
[1732656808365,7.60009474,230.59,230.56,21.68752831]
[1732656808565,7.60009474,230.59,230.57,21.68752831]
[1732656808757,7.60009474,230.59,230.57,26.02432831]
[1732656808954,7.60009474,230.59,230.55,21.68752831]
[1732656809287,7.60009474,230.59,230.56,21.68752831]
[1732656809984,7.60009474,230.59,230.54,21.68752831]
[1732656810949,7.60009474,230.59,230.55,21.68752831]
[1732656811153,7.60009474,230.59,230.53,21.68752831]
[1732656811478,7.60009474,230.59,230.56,21.68752831]
[1732656812375,7.60009474,230.59,230.55,21.68752831]
[1732656812751,7.60009474,230.59,230.54,21.68752831]
[1732656812957,7.60009474,230.59,230.55,21.68752831]
[1732656813179,7.60009474,230.59,230.54,4.3374]
[1732656814472,21.68752831,230.58,230.51,26.02572831]
[1732656814682,7.60009474,230.59,230.55,21.68752831]
[1732656814852,7.60009474,230.59,230.56,21.68752831]
[1732656815051,7.60009474,230.59,230.55,21.68752831]
[1732656815273,7.60009474,230.59,230.56,21.68752831]
[1732656815455,7.60009474,230.59,230.55,21.68752831]
[1732656816182,7.60009474,230.59,230.58,21.68752831]
[1732656816389,7.60009474,230.59,230.58,26.02432831]
[1732656819177,7.60009474,230.59,230.54,21.68752831]
[1732656819590,7.60009474,230.59,230.53,21.68752831]
[1732656819787,7.60009474,230.59,230.54,21.68752831]
[1732656819999,7.60009474,230.59,230.55,21.68752831]
[1732656822173,7.60009474,230.59,230.57,21.68752831]
[1732656822500,7.60009474,230.59,230.56,21.68752831]
[1732656823481,7.60009474,230.59,230.58,21.68752831]
[1732656824006,7.60009474,230.59,230.54,15.1817]
[1732656824007,7.60009474,230.59,230.56,21.68752831]
[1732656824182,7.60009474,230.59,230.57,21.68752831]
[1732656824383,7.60009474,230.59,230.58,13.55957594]
[1732656824574,7.60009474,230.59,230.57,13.55957594]
[1732656825482,7.60009474,230.59,230.56,13.55957594]
[1732656825795,7.60009474,230.59,230.52,4.338]
[1732656826101,13.55957594,230.58,230.52,4.338]
[1732656826312,13.55957594,230.56,230.48,13.55957594]
[1732656826481,13.55957594,230.54,230.47,17.89847594]
[1732656826988,9.76839474,230.59,230.43,13.55957594]
[1732656826989,13.55957594,230.5,230.43,13.55957594]
[1732656827306,13.55957594,230.47,230.4,13.55957594]
[1732656827505,6.5639,230.54,230.39,17.89997594]
[1732656827506,13.55957594,230.46,230.39,17.89997594]
[1732656827718,13.55957594,230.44,230.37,13.55957594]
[1732656827880,13.55957594,230.45,230.37,17.90017594]
[1732656828277,13.55957594,230.44,230.37,17.90017594]
[1732656828886,13.55957594,230.44,230.33,4.3415]
[1732656829203,13.55957594,230.44,230.37,13.55957594]
[1732656829510,13.55957594,230.44,230.37,17.90037594]
[1732656830404,21.73539911,230.44,230.37,26.07619911]
[1732656830706,21.73539911,230.42,230.35,21.73539911]
[1732656831507,21.73539911,230.44,230.37,21.73539911]
[1732656831889,21.73539911,230.43,230.36,21.73539911]
[1732656832207,21.73539911,230.42,230.35,21.73539911]
[1732656832692,21.73539911,230.42,230.35,26.07639911]
[1732656834207,2.1697,230.44,230.31,0.5194559]
[1732656834208,21.73539911,230.36,230.31,0.5194559]
[1732656834505,21.73539911,230.34,230.31,0.5194559]
[1732656835407,21.73539911,230.35,230.31,0.5194559]
[1732656835611,21.73539911,230.36,230.31,0.5194559]
[1732656836611,21.73539911,230.33,230.31,0.5194559]
[1732656836811,21.73539911,230.32,230.31,0.5194559]
[1732656837296,45.51228311,230.32,230.31,0.5194559]
[1732656837500,52.07618311,230.32,230.31,0.4994559]
[1732656837712,20.0,230.25,230.17,4.3446]
[1732656838017,21.73539911,230.22,230.17,4.3446]
[1732656838194,21.73539911,230.21,230.14,21.73539911]
[1732656838396,21.73539911,230.22,230.15,26.08019911]
[1732656838603,21.73539911,230.19,230.13,4.3451]
[1732656838801,21.73539911,230.18,230.13,4.3451]
[1732656839322,21.73539911,230.21,230.14,21.73539911]
[1732656839496,21.73539911,230.2,230.13,26.08049911]
[1732656840004,21.73539911,230.21,230.14,21.73539911]
[1732656840390,21.73539911,230.2,230.13,26.08049911]
[1732656840596,21.73539911,230.19,230.13,24.3451]
[1732656840795,21.73539911,230.19,230.13,4.3451]
[1732656841024,21.73539911,230.2,230.13,46.08049911]
[1732656841204,21.73539911,230.18,230.13,4.3451]
[1732656841512,21.73539911,230.16,230.11,4.3456]
[1732656841720,21.73539911,230.14,230.09,4.3459]
[1732656841900,21.73539911,230.15,230.09,4.3459]
[1732656842398,21.73539911,230.15,230.08,22.25485501]
[1732656842728,21.73539911,230.15,230.08,26.60105501]
[1732656843214,21.73539911,230.16,230.09,21.73539911]
[1732656843421,21.73539911,230.19,230.12,21.73539911]
[1732656843628,7.61178742,230.2,230.14,21.73539911]
[1732656843918,21.73539911,230.19,230.11,21.73539911]
[1732656844221,29.34718653,230.2,230.13,21.73539911]
[1732656844715,21.73539911,230.19,230.12,21.73539911]
[1732656844926,21.73539911,230.17,230.1,21.73539911]
[1732656845093,21.73539911,230.17,230.11,4.3457]
[1732656845293,21.73539911,230.18,230.11,26.08109911]
[1732656845540,21.73539911,230.17,230.11,4.3457]
[1732656845696,21.73539911,230.16,230.11,4.3457]
[1732656846499,21.73539911,230.17,230.1,21.73539911]
[1732656846700,7.61178742,230.2,230.15,21.73539911]
[1732656846918,7.61178742,230.2,230.14,21.73539911]
[1732656847227,7.61178742,230.2,230.15,21.73539911]
[1732656847813,29.34718653,230.2,230.13,21.73539911]
[1732656848013,7.61178742,230.2,230.14,21.73539911]
[1732656848427,7.61178742,230.2,230.15,21.73539911]
[1732656848630,29.34718653,230.2,230.14,4.345]
[1732656849030,21.73539911,230.19,230.14,4.345]
[1732656849411,7.61178742,230.2,230.16,21.73539911]
[1732656849617,7.61178742,230.2,230.17,21.73539911]
[1732656849930,7.61178742,230.2,230.18,21.73539911]
[1732656850435,7.61178742,230.2,230.19,21.73539911]
[1732656850647,7.61178742,230.2,230.19,26.07959911]
[1732656852540,4.62018742,230.2,230.19,49.85648311]
[1732656852710,1.08048742,230.2,230.19,49.85648311]
[1732656852917,8.742e-05,230.2,230.19,49.85648311]
[1732656853228,21.73539911,230.35,230.23,20.0]
[1732656853536,21.73539911,230.35,230.28,21.73539911]
[1732656853908,21.73539911,230.3,230.23,21.73539911]
[1732656854114,21.73539911,230.27,230.2,21.73539911]
[1732656854335,21.73539911,230.25,230.18,21.73539911]
[1732656854514,21.73539911,230.25,230.18,26.07969911]
[1732656854723,21.73539911,230.27,230.2,21.73539911]
[1732656855433,21.73539911,230.28,230.21,21.73539911]
[1732656855818,21.73539911,230.29,230.23,21.73539911]
[1732656856443,21.73539911,230.3,230.23,21.73539911]
[1732656857439,21.73539911,230.32,230.25,21.73539911]
[1732656857748,21.73539911,230.31,230.25,26.07829911]
[1732656858424,21.73539911,230.33,230.26,21.73539911]
[1732656858625,21.73539911,230.32,230.26,21.73539911]
[1732656858835,21.73539911,230.33,230.26,21.73539911]
[1732656859039,21.73539911,230.34,230.27,21.73539911]
[1732656859249,16.2426,230.37,230.25,4.3429]
[1732656859250,37.97799911,230.37,230.3,21.73539911]
[1732656859422,21.73539911,230.36,230.29,21.73539911]
[1732656859742,21.73539911,230.35,230.28,21.73539911]
[1732656859951,21.73539911,230.34,230.27,21.73539911]
[1732656860429,21.73539911,230.33,230.26,21.73539911]
[1732656860627,21.73539911,230.31,230.25,4.3429]
[1732656860823,21.73539911,230.35,230.28,21.73539911]
[1732656861141,21.73539911,230.34,230.27,21.73539911]
[1732656861327,21.73539911,230.35,230.28,21.73539911]
[1732656861652,21.73539911,230.35,230.29,4.3423]
[1732656863023,21.73539911,230.35,230.28,21.73539911]
[1732656864044,23.0404,230.34,230.28,26.07779911]
[1732656864247,23.0404,230.34,230.09,6.325]
[1732656864248,20.0,230.15,229.99,21.73539911]
[1732656864454,21.73539911,230.11,230.03,21.73539911]
[1732656864633,21.73539911,230.09,230.02,4.3473]
[1732656864950,21.73539911,230.09,230.0,4.3477]
[1732656865440,21.73539911,230.09,229.98,32.40839911]
[1732656865646,21.73539911,230.09,230.0,21.73539911]
[1732656867048,21.73539911,230.09,229.99,4.3478]
[1732656867231,21.73539911,230.09,229.99,26.08319911]
[1732656868352,21.73539911,230.09,230.0,21.73539911]
[1732656869052,21.73539911,230.09,230.0,26.08309911]
[1732656869551,21.73539911,230.09,230.0,4.3477]
[1732656869725,45.51228311,230.09,229.96,22.72388287]
[1732656870053,45.51228311,230.09,229.96,27.07238287]
[1732656870233,45.51228311,230.09,229.96,5.33698376]
[1732656870430,45.51228311,230.09,229.97,21.73539911]
[1732656870835,45.51228311,230.09,229.96,5.33698376]
[1732656870836,45.51228311,230.09,229.96,22.72388287]
[1732656871039,45.51228311,230.09,229.97,21.73539911]
[1732656871530,45.51228311,230.09,230.0,21.73539911]
[1732656871930,45.51228311,230.09,230.01,21.73539911]
[1732656872131,45.51228311,230.09,230.0,21.73539911]
[1732656872736,45.51228311,230.09,229.99,21.73539911]
[1732656873651,45.51228311,230.09,230.0,26.08299911]
[1732656874337,21.73539911,230.09,230.0,21.73539911]
[1732656874849,21.73539911,230.09,230.02,26.08279911]
[1732656875050,21.73539911,230.09,230.01,21.73539911]
[1732656875351,21.73539911,230.09,230.01,26.08289911]
[1732656875539,21.73539911,230.09,230.02,21.73539911]
[1732656875745,21.73539911,230.13,230.06,21.73539911]
[1732656875954,21.73539911,230.13,230.05,26.08209911]
[1732656876248,21.73539911,230.11,230.04,4.3469]
[1732656877354,21.73539911,230.1,230.04,4.3469]
[1732656880343,21.73539911,230.1,230.05,4.3468]
[1732656881752,21.73539911,230.11,230.05,4.3468]
[1732656882348,21.73539911,230.1,230.05,4.3468]
[1732656882657,21.73539911,230.12,230.05,4.3468]
[1732656884143,21.73539911,230.12,230.05,26.08219911]
[1732656884355,41.73539911,230.09,230.02,4.3473]
[1732656885237,41.73539911,230.09,230.01,15.0]
[1732656885438,41.73539911,230.09,230.01,19.3475]
[1732656885755,41.73539911,230.09,230.02,4.3474]
[1732656885944,41.73539911,230.09,230.01,15.0]
[1732656886339,43.90839911,230.09,230.01,15.0]
[1732656887154,43.90839911,230.09,230.01,19.3475]
[1732656887462,43.90839911,230.09,230.02,4.3474]
[1732656887933,43.90839911,230.09,230.01,15.0]
[1732656888356,33.62978275,230.09,230.01,15.0]
[1732656888543,33.62978275,230.09,230.02,4.3474]
[1732656889136,33.62978275,230.09,230.01,15.0]
[1732656889333,35.80278275,230.09,230.01,19.3476]
[1732656889555,33.62978275,230.09,230.01,15.0]
[1732656889758,33.62978275,230.09,230.01,19.3475]
[1732656890339,35.80278275,230.09,230.01,19.3475]
[1732656890541,59.57966675,230.09,230.01,15.0]
[1732656891641,64.57966675,230.09,230.08,5.59e-05]
[1732656892936,59.57966675,230.09,230.08,5.59e-05]
[1732656894560,61.21404825,230.09,230.08,5.59e-05]
[1732656896350,20.0,230.05,230.01,15.0]
[1732656896652,13.62978275,230.02,230.01,15.0]
[1732656898048,37.40666675,230.02,230.01,15.0]
[1732656898249,39.58036675,230.02,230.01,15.0]
[1732656898467,39.68036675,230.02,230.01,15.0]
[1732656898669,39.58036675,230.02,230.01,15.0]